fUST/lending_fUST_20241231
["ID","MTS","AMOUNT","RATE_DAILY","PERIOD"]
[347220205,1735587045171,-153.5340186,0.00020192,2]
[347220206,1735587045181,-153.0,0.00020192,2]
[347220207,1735587045191,-153.5340186,0.00020192,2]
[347220208,1735587045201,-454.04600394,0.000202,4]
[347220209,1735587045210,-154.35,0.00020216,2]
[347220210,1735587045220,-475.3471717,0.00020219,2]
[347220211,1735587045230,-9074.98908341,0.00020265,2]
[347220212,1735587045239,-499.0,0.00020273,2]
[347220213,1735587045249,-151.34866798,0.00020364,2]
[347220214,1735587045259,-454.04600394,0.00020375,4]
[347220215,1735587045268,-487.80451865,0.00020396,4]
[347220216,1735587045278,-2624.15816643,0.000204,2]
[347220217,1735587045287,-324.46020133,0.000204,2]
[347220218,1735587045297,-400.0,0.00020447,2]
[347220219,1735587045307,-2624.15816635,0.0002046,2]
[347220220,1735587045316,-153.0,0.00020493,2]
[347220221,1735587045326,-153.0,0.00020493,2]
[347220222,1735587045336,-153.0,0.00020493,2]
[347220223,1735587045346,-500.0,0.00020498,2]
[347220224,1735587045355,-386.57391279,0.00020499,2]
[347220225,1735587045365,-500.0,0.00020499,2]
[347220226,1735587045375,-500.0,0.00020499,2]
[347220227,1735587045386,-370.3478858,0.00020499,2]
[347220228,1735587045396,-500.0,0.00020499,2]
[347220229,1735587045406,-500.0,0.00020499,2]
[347220230,1735587045416,-500.0,0.00020499,2]
[347220231,1735587045425,-500.0,0.00020499,2]
[347220232,1735587045435,-500.0,0.00020499,2]
[347220233,1735587045445,-500.0,0.00020499,2]
[347220234,1735587045455,-500.0,0.00020499,2]
[347220235,1735587045465,-500.0,0.00020499,2]
[347220236,1735587045475,-500.0,0.00020499,2]
[347220237,1735587045485,-500.0,0.00020499,2]
[347220238,1735587045495,-500.0,0.00020499,2]
[347220239,1735587045505,-500.0,0.00020499,2]
[347220240,1735587045515,-500.0,0.00020499,2]
[347220241,1735587045525,-500.0,0.00020499,2]
[347220242,1735587045535,-524.2352322,0.00020499,2]
[347220243,1735587045548,-7357.39460458,0.000205,2]
[347220244,1735587045558,-67917.87598479,0.000205,2]
[347220245,1735587045573,-432.01017117,0.000205,2]
[347220246,1735587045584,-490.40668275,0.000205,2]
[347220249,1735587045671,-481.63326869,0.000205,2]
[347220273,1735587046196,-419.52770081,0.00016816,2]
[347220274,1735587046251,-77.4474738,0.00016816,2]
[347220275,1735587046260,-352.5060848,0.00019123,2]
[347220276,1735587046271,-153.5340186,0.00020192,2]
[347220277,1735587046281,-22726.59974518,0.000205,2]
[347220278,1735587046291,-59743.40129499,0.000205,7]
[347220279,1735587046303,-1141.71863917,0.000205,7]
[347220298,1735587851366,222.0,0.00027,120]
[347220351,1735588232509,-300.0,0.00010957,2]
[347220353,1735588232519,-500.0,0.00010958,2]
[347220355,1735588232528,-500.37468758,0.00010958,2]
[347220357,1735588232538,-213.69235869,0.00010958,2]
[347220403,1735588238503,-148.92032949,0.00010958,2]
[347220404,1735588238513,-500.0,0.00010958,2]
[347220405,1735588238523,-178.94986003,0.00010958,2]
[347220406,1735588238533,-500.0,0.00010958,2]
[347220407,1735588238543,-500.0,0.00010958,2]
[347220408,1735588238553,-500.0,0.00010958,2]
[347220409,1735588238563,-166.72422809,0.00010958,2]
[347220410,1735588238573,-500.0,0.00010958,2]
[347220411,1735588238583,-500.0,0.00010958,2]
[347220412,1735588238593,-275.2075014,0.00010958,2]
[347220413,1735588238606,-500.0,0.00010958,2]
[347220414,1735588238616,-594.29,0.00010958,2]
[347220415,1735588238626,-500.0,0.00010958,2]
[347220416,1735588238636,-500.0,0.00010958,2]
[347220417,1735588238647,-144.0733888,0.00011232,2]
[347220430,1735588240268,-355.9266112,0.00011232,2]
[347220431,1735588240278,-500.0,0.00011232,2]
[347220432,1735588240288,-500.0,0.00011506,2]
[347220433,1735588240297,-500.0,0.00011506,2]
[347220434,1735588240306,-138.67695957,0.0001178,2]
[347220435,1735588240324,-361.32304043,0.0001178,2]
[347220436,1735588240334,-500.0,0.0001178,2]
[347220437,1735588240344,-420.0,0.00012041,2]
[347220438,1735588240355,-500.0,0.00012054,2]
[347220439,1735588240365,-500.0,0.00012054,2]
[347220440,1735588240374,-637.4574168,0.00012328,2]
[347220441,1735588240383,-500.0,0.00012328,2]
[347220442,1735588240393,-505.0,0.00013232,2]
[347220443,1735588240403,-154.35,0.00013873,2]
[347220444,1735588240412,-400.0,0.00013973,2]
[347220446,1735588240421,-229.91499291,0.00014793,2]
[347220448,1735588240433,-270.08500709,0.00014793,2]
[347220450,1735588240442,-500.0,0.0001533,2]
[347220452,1735588240452,-256.3842384,0.0001533,2]
[347220454,1735588240461,-500.0,0.0001533,2]
[347220455,1735588240470,-500.0,0.0001533,2]
[347220456,1735588240479,-473.53076451,0.0001533,2]
[347220470,1735588243317,-26.46923549,0.0001533,2]
[347220471,1735588243326,-500.0,0.0001533,2]
[347220472,1735588243335,-500.0,0.0001533,2]
[347220473,1735588243344,-500.0,0.0001533,2]
[347220474,1735588243355,-500.0,0.0001533,2]
[347220475,1735588243364,-500.0,0.0001533,2]
[347220476,1735588243374,-500.0,0.0001533,2]
[347220477,1735588243383,-500.0,0.0001533,2]
[347220478,1735588243393,-500.0,0.0001533,2]
[347220479,1735588243402,-5415.9941097,0.00015331,2]
[347220480,1735588243411,-300.0,0.000156,5]
[347220481,1735588243420,-267.52892593,0.00015604,2]
[347220482,1735588243429,-500.0,0.00015604,2]
[347220484,1735588243439,-500.0,0.00015604,2]
[347220485,1735588243448,-583.7,0.00015604,2]
[347220486,1735588243458,-500.0,0.00015604,2]
[347220487,1735588243468,-500.0,0.00015878,2]
[347220488,1735588243477,-500.0,0.00015878,2]
[347220489,1735588243487,-500.0,0.00015878,2]
[347220490,1735588243497,-150.3692212,0.00016052,2]
[347220491,1735588243507,-500.0,0.00016152,2]
[347220492,1735588243516,-500.0,0.00016152,2]
[347220493,1735588243525,-500.0,0.00016152,2]
[347220494,1735588243534,-500.0,0.00016426,2]
[347220495,1735588243543,-336.91,0.00016426,2]
[347220496,1735588243552,-500.0,0.00016438,2]
[347220497,1735588243562,-500.0,0.000167,2]
[347220498,1735588243571,-150.0,0.00016799,2]
[347220499,1735588243581,-534.0,0.00016799,2]
[347220500,1735588243591,-2097.0,0.00016799,2]
[347220501,1735588243600,-2350.0,0.00016799,2]
[347220502,1735588243611,-500.0,0.00016974,2]
[347220503,1735588243620,-500.0,0.00017123,4]
[347220504,1735588243630,-371.875,0.00017235,2]
[347220505,1735588243640,-500.0,0.00017248,2]
[347220506,1735588243649,-500.0,0.00017522,2]
[347220507,1735588243659,-500.0,0.00017796,2]
[347220508,1735588243668,-500.0,0.00017808,6]
[347220509,1735588243678,-2268.58308863,0.00018,2]
[347220510,1735588243688,-500.0,0.0001807,2]
[347220511,1735588243697,-500.0,0.00018344,2]
[347220512,1735588243707,-500.0,0.00018493,8]
[347220513,1735588243716,-500.0,0.00018618,2]
[347220514,1735588243725,-500.0,0.00018892,2]
[347220515,1735588243735,-482.60358738,0.00019166,2]
[347220516,1735588243744,-500.0,0.00019178,10]
[347220517,1735588243753,-180.348931,0.00019178,2]
[347220518,1735588243763,-153.0,0.0001937,2]
[347220519,1735588243772,-153.0,0.0001937,2]
[347220520,1735588243781,-719.679,0.0001947,2]
[347220521,1735588243789,-153.0,0.00019578,2]
[347220522,1735588243799,-153.5340186,0.00019778,2]
[347220523,1735588243808,-153.0,0.00019778,2]
[347220524,1735588243817,-153.3488238,0.00019778,2]
[347220525,1735588243827,-150.0,0.00019799,2]
[347220526,1735588243836,-534.0,0.00019799,2]
[347220527,1735588243845,-2097.0,0.00019799,2]
[347220528,1735588243855,-2350.0,0.00019799,2]
[347220529,1735588243864,-500.0,0.00019863,12]
[347220530,1735588243873,-1487.56,0.0002,2]
[347220531,1735588243882,-237.5911979,0.00020295,2]
[347220532,1735588243891,-2099.32653308,0.000204,2]
[347220533,1735588243901,-156.0,0.00020439,2]
[347220534,1735588243910,-151.13,0.00020439,2]
[347220535,1735588243924,-400.0,0.00020447,2]
[347220536,1735588243934,-2099.32653308,0.00020458,2]
[347220537,1735588243943,-151.0,0.00020499,2]
[347220538,1735588243953,-535.7461425,0.00020499,2]
[347220539,1735588243962,-500.0,0.00020499,2]
[347220540,1735588243971,-174.10702234,0.00020499,2]
[347220541,1735588243980,-258.66050808,0.00020499,2]
[347220542,1735588243989,-500.0,0.00020499,2]
[347220543,1735588243998,-169.98735543,0.00020499,2]
[347220544,1735588244008,-499.0,0.00020499,2]
[347220545,1735588244016,-3678.69730229,0.000205,2]
[347220546,1735588244026,-46024.26292629,0.000205,2]
[347220547,1735588244035,-433775.67661784,0.000205,7]
[347220689,1735589438306,-567.83561888,0.00010142,2]
[347220690,1735589438316,-3654.93130513,0.00010244,2]
[347220691,1735589438329,-6343.73486127,0.00010244,2]
[347220692,1735589438340,-2080.0319401,0.00010244,2]
[347220693,1735589438349,-879.3990299,0.00010423,2]
[347220694,1735589438360,-500.0,0.00010958,2]
[347220695,1735589438370,-218.92802672,0.00010958,2]
[347220696,1735589438379,-500.0,0.00010958,2]
[347220697,1735589438388,-455.34909137,0.00010958,2]
[347220698,1735589438411,-44.65090863,0.00010958,2]
[347220699,1735589438421,-500.0,0.00010958,2]
[347220700,1735589438430,-500.0,0.00010958,2]
[347220701,1735589438439,-500.0,0.00010958,2]
[347220702,1735589438449,-500.0,0.00010958,2]
[347220703,1735589438458,-500.0,0.00010958,2]
[347220704,1735589438467,-595.33,0.00010958,2]
[347220705,1735589438476,-500.0,0.00010958,2]
[347220706,1735589438485,-500.0,0.00010958,2]
[347220707,1735589438495,-500.0,0.00011229,2]
[347220708,1735589438504,-500.0,0.00011229,2]
[347220709,1735589438513,-500.0,0.00011229,2]
[347220710,1735589438522,-500.0,0.00011229,2]
[347220711,1735589438532,-500.0,0.0001123,2]
[347220712,1735589438542,-500.0,0.0001123,2]
[347220713,1735589438551,-500.0,0.0001123,2]
[347220714,1735589438560,-6000.0,0.0001123,2]
[347220715,1735589438569,-500.0,0.0001123,2]
[347220716,1735589438578,-286.64909137,0.0001123,2]
[347220717,1735589438591,-213.35090863,0.0001123,2]
[347220718,1735589438599,-506.1,0.0001123,2]
[347220719,1735589438609,-500.0,0.0001123,2]
[347220720,1735589438618,-500.0,0.0001123,2]
[347220721,1735589438627,-500.0,0.0001123,2]
[347220722,1735589438636,-475.32,0.0001123,2]
[347220723,1735589438645,-500.0,0.0001123,2]
[347220724,1735589438654,-500.0,0.0001123,2]
[347220725,1735589438663,-500.0,0.0001123,2]
[347220726,1735589438673,-459.07307956,0.0001123,2]
[347220727,1735589438682,-500.0,0.0001123,2]
[347220728,1735589438691,-500.0,0.0001123,2]
[347220729,1735589438700,-500.0,0.00011231,2]
[347220730,1735589438709,-339.10884884,0.00011231,2]
[347220731,1735589438721,-160.89115116,0.00011231,2]
[347220732,1735589438730,-500.0,0.00011231,2]
[347220733,1735589438739,-500.0,0.00011231,2]
[347220734,1735589438749,-500.0,0.00011231,2]
[347220735,1735589438758,-500.0,0.00011231,2]
[347220736,1735589438767,-500.0,0.00011231,2]
[347220737,1735589438776,-500.0,0.00011231,2]
[347220738,1735589438786,-500.0,0.00011231,2]
[347220739,1735589438794,-500.0,0.00011231,2]
[347220740,1735589438803,-500.0,0.00011231,2]
[347220741,1735589438812,-500.0,0.00011231,2]
[347220742,1735589438821,-500.0,0.00011231,2]
[347220743,1735589438831,-265.71,0.00011231,2]
[347220744,1735589438840,-500.0,0.00011231,2]
[347220745,1735589438849,-500.0,0.00011231,2]
[347220746,1735589438858,-473.93,0.00011231,2]
[347220747,1735589438868,-500.0,0.00011231,2]
[347220748,1735589438877,-500.0,0.00011231,2]
[347220749,1735589438886,-263.85,0.00011231,2]
[347220750,1735589438895,-500.0,0.00011231,2]
[347220751,1735589438905,-2403.45,0.00011231,2]
[347220752,1735589438914,-500.0,0.00011231,2]
[347220753,1735589438923,-500.0,0.00011231,2]
[347220754,1735589438932,-500.0,0.00011231,2]
[347220755,1735589438941,-500.0,0.00011231,2]
[347220756,1735589438950,-500.0,0.00011231,2]
[347220757,1735589438959,-500.0,0.00011231,2]
[347220758,1735589438968,-500.0,0.00011231,2]
[347220759,1735589438978,-500.0,0.00011231,2]
[347220760,1735589438987,-500.0,0.00011231,2]
[347220761,1735589438997,-401.11702692,0.00011232,2]
[347220762,1735589439006,-500.0,0.00011232,2]
[347220763,1735589439102,-500.0,0.00011232,2]
[347220764,1735589439112,-500.0,0.00011232,2]
[347220765,1735589439122,-595.33,0.00011232,2]
[347220766,1735589439131,-155.07,0.00011232,2]
[347220767,1735589439141,-20.78933615,0.00011232,2]
[347220779,1735589440510,-479.21066385,0.00011232,2]
[347220780,1735589440519,-500.0,0.00011503,2]
[347220781,1735589440529,-500.0,0.00011503,2]
[347220782,1735589440538,-512.33,0.00011503,2]
[347220783,1735589440548,-500.0,0.00011504,2]
[347220784,1735589440558,-179.59,0.00011504,2]
[347220785,1735589440567,-500.0,0.00011504,2]
[347220786,1735589440576,-500.0,0.00011504,2]
[347220787,1735589440587,-500.0,0.00011504,2]
[347220788,1735589440597,-500.0,0.00011504,2]
[347220789,1735589440606,-500.0,0.00011504,2]
[347220790,1735589440616,-500.0,0.00011504,2]
[347220791,1735589440625,-500.0,0.00011504,2]
[347220792,1735589440634,-500.0,0.00011504,2]
[347220793,1735589440643,-500.0,0.00011504,2]
[347220794,1735589440653,-500.0,0.00011504,2]
[347220795,1735589440662,-484.41711928,0.00011504,2]
[347220796,1735589440671,-516.93746194,0.00011504,2]
[347220797,1735589440680,-500.0,0.00011505,2]
[347220798,1735589440689,-500.0,0.00011505,2]
[347220799,1735589440698,-500.0,0.00011505,2]
[347220800,1735589440707,-500.0,0.00011505,2]
[347220801,1735589440716,-85.08975581,0.00011505,2]
[347220802,1735589440727,-414.91024419,0.00011505,2]
[347220803,1735589440736,-500.0,0.00011505,2]
[347220804,1735589440745,-500.0,0.00011505,2]
[347220805,1735589440754,-500.0,0.00011505,2]
[347220806,1735589440763,-500.0,0.00011505,2]
[347220807,1735589440772,-500.0,0.00011505,2]
[347220808,1735589440781,-500.0,0.00011505,2]
[347220809,1735589440791,-500.0,0.00011505,2]
[347220810,1735589440799,-500.0,0.00011505,2]
[347220811,1735589440808,-500.0,0.00011505,2]
[347220812,1735589440817,-500.0,0.00011505,2]
[347220813,1735589440826,-500.0,0.00011505,2]
[347220814,1735589440836,-500.0,0.00011505,2]
[347220815,1735589440845,-500.0,0.00011505,2]
[347220816,1735589440854,-2403.45,0.00011505,2]
[347220817,1735589440863,-550.55190472,0.00011505,2]
[347220818,1735589440872,-500.0,0.00011505,2]
[347220819,1735589440881,-206.76426436,0.00011505,2]
[347220820,1735589440890,-337.56586032,0.00011506,2]
[347220821,1735589440899,-500.0,0.00011506,2]
[347220822,1735589440908,-595.33,0.00011506,2]
[347220823,1735589440917,-500.0,0.00011506,2]
[347220824,1735589440926,-500.0,0.00011777,2]
[347220825,1735589440934,-500.0,0.00011777,2]
[347220826,1735589440943,-500.0,0.00011778,2]
[347220827,1735589440952,-500.0,0.00011778,2]
[347220828,1735589440961,-500.0,0.00011778,2]
[347220829,1735589440970,-500.0,0.00011778,2]
[347220830,1735589440979,-539.36,0.00011778,2]
[347220831,1735589440988,-500.0,0.00011778,2]
[347220832,1735589440997,-500.0,0.00011778,2]
[347220833,1735589441006,-500.0,0.00011778,2]
[347220834,1735589441016,-500.0,0.00011778,2]
[347220835,1735589441025,-500.0,0.00011779,2]
[347220836,1735589441034,-500.0,0.00011779,2]
[347220837,1735589441043,-500.0,0.00011779,2]
[347220838,1735589441052,-500.0,0.00011779,2]
[347220839,1735589441061,-95.91070141,0.00011779,2]
[347220848,1735589443387,-500.0,0.00011231,2]
[347220849,1735589443396,-500.0,0.00011505,2]
[347220850,1735589443405,-412.09929859,0.00011779,2]
[347220851,1735589443415,-500.0,0.00011779,2]
[347220852,1735589443424,-500.0,0.00011779,2]
[347220853,1735589443433,-500.0,0.00011779,2]
[347220854,1735589443442,-500.0,0.00011779,2]
[347220855,1735589443452,-500.0,0.00011779,2]
[347220856,1735589443462,-500.0,0.00011779,2]
[347220857,1735589443471,-555.22,0.00011779,2]
[347220858,1735589443480,-500.0,0.00011779,2]
[347220859,1735589443489,-273.22,0.00011779,2]
[347220860,1735589443498,-500.0,0.00011779,2]
[347220861,1735589443507,-500.0,0.00011779,2]
[347220862,1735589443516,-500.0,0.00011779,2]
[347220863,1735589443526,-2403.45,0.00011779,2]
[347220864,1735589443536,-500.0,0.00011779,2]
[347220865,1735589443545,-500.0,0.0001178,2]
[347220866,1735589443554,-595.33,0.0001178,2]
[347220867,1735589443564,-500.0,0.0001178,2]
[347220868,1735589443573,-500.0,0.00012051,2]
[347220869,1735589443583,-500.0,0.00012052,2]
[347220870,1735589443594,-500.0,0.00012052,2]
[347220871,1735589443603,-500.0,0.00012052,2]
[347220872,1735589443612,-292.29,0.00012052,2]
[347220873,1735589443621,-500.0,0.00012052,2]
[347220874,1735589443631,-500.0,0.00012052,2]
[347220875,1735589443640,-500.0,0.00012052,2]
[347220876,1735589443649,-494.97,0.00012052,2]
[347220877,1735589443662,-219.06,0.00012053,2]
[347220878,1735589443673,-500.0,0.00012053,2]
[347220879,1735589443686,-182.91,0.00012053,2]
[347220880,1735589443698,-371.55,0.00012053,2]
[347220881,1735589443707,-2403.45,0.00012053,2]
[347220882,1735589443716,-500.0,0.00012054,2]
[347220883,1735589443726,-595.33,0.00012054,2]
[347220884,1735589443735,-422.0,0.00012054,2]
[347220885,1735589443744,-500.0,0.00012325,2]
[347220886,1735589443754,-500.0,0.00012326,2]
[347220887,1735589443763,-500.0,0.00012326,2]
[347220888,1735589443772,-645.76,0.00012326,2]
[347220889,1735589443781,-500.0,0.00012326,2]
[347220890,1735589443791,-220.57,0.00012326,2]
[347220891,1735589443801,-2403.45,0.00012327,2]
[347220892,1735589443810,-500.0,0.00012328,2]
[347220893,1735589443819,-595.33,0.00012328,2]
[347220894,1735589443829,-2527.175907,0.00012495,2]
[347220895,1735589443838,-508.61,0.00012599,2]
[347220896,1735589443847,-500.0,0.000126,2]
[347220897,1735589443857,-420.56,0.000126,2]
[347220898,1735589443867,-500.0,0.000126,2]
[347220899,1735589443876,-1998.96987901,0.00012601,2]
[347220900,1735589443888,-313.26257089,0.00012601,2]
[347220901,1735589443899,-91.2175501,0.00012601,2]
[347220902,1735589443908,-500.0,0.00012602,2]
[347220903,1735589443918,-595.33,0.00012602,2]
[347220904,1735589443926,-500.0,0.00012874,2]
[347220905,1735589443936,-632.28,0.00012874,2]
[347220906,1735589443946,-500.0,0.00012875,2]
[347220907,1735589443955,-500.0,0.00012875,2]
[347220908,1735589443964,-2018.7,0.00012875,2]
[347220909,1735589443974,-500.0,0.00012875,2]
[347220910,1735589443983,-2403.45,0.00012875,2]
[347220911,1735589443992,-544.84,0.00012876,2]
[347220912,1735589444001,-595.33,0.00012876,2]
[347220913,1735589444011,-184.78919471,0.000129,2]
[347220914,1735589444020,-500.0,0.00013148,2]
[347220915,1735589444029,-248.6,0.00013149,2]
[347220916,1735589444038,-218.82,0.00013149,2]
[347220917,1735589444047,-2403.45,0.00013149,2]
[347220918,1735589444056,-595.33,0.0001315,2]
[347220919,1735589444064,-500.0,0.00013422,2]
[347220920,1735589444073,-2403.45,0.00013423,2]
[347220921,1735589444082,-595.33,0.00013424,2]
[347220922,1735589444091,-500.0,0.00013696,2]
[347220923,1735589444100,-2403.45,0.00013697,2]
[347220924,1735589444109,-595.33,0.00013698,2]
[347220925,1735589444119,-500.0,0.00013698,2]
[347220926,1735589444128,-190.603783,0.00013699,2]
[347220927,1735589444137,-500.0,0.00013699,2]
[347220928,1735589444147,-2507.7175,0.000138,2]
[347220929,1735589444156,-2507.7175,0.000138,2]
[347220930,1735589444165,-2507.7175,0.000138,2]
[347220931,1735589444174,-2507.7175,0.000138,2]
[347220932,1735589444183,-2507.7175,0.000138,2]
[347220933,1735589444193,-2507.7175,0.000138,2]
[347220934,1735589444202,-500.0,0.0001397,2]
[347220935,1735589444212,-2403.45,0.00013971,2]
[347220936,1735589444221,-595.33,0.00013972,2]
[347220937,1735589444230,-400.0,0.00013973,2]
[347220938,1735589444239,-503.51640862,0.000141,2]
[347220939,1735589444249,-478.05500604,0.00014186,2]
[347220940,1735589444258,-2507.7175,0.00014223,2]
[347220941,1735589444267,-500.0,0.00014244,2]
[347220942,1735589444279,-500.0,0.00014245,2]
[347220943,1735589444295,-500.0,0.00014245,2]
[347220944,1735589444304,-539.93542246,0.00014245,2]
[347220945,1735589444314,-500.0,0.00014245,2]
[347220946,1735589444323,-500.0,0.00014245,2]
[347220947,1735589444334,-500.0,0.00014245,2]
[347220948,1735589444343,-500.0,0.00014245,2]
[347220949,1735589444352,-500.0,0.00014245,2]
[347220950,1735589444361,-300.89387254,0.00014245,2]
[347220951,1735589444371,-500.0,0.00014245,2]
[347220952,1735589444380,-500.0,0.00014245,2]
[347220953,1735589444389,-500.0,0.00014245,2]
[347220954,1735589444399,-500.0,0.00014245,2]
[347220955,1735589444408,-500.0,0.00014245,2]
[347220956,1735589444417,-500.0,0.00014245,2]
[347220957,1735589444427,-500.0,0.00014245,2]
[347220958,1735589444436,-500.0,0.00014245,2]
[347220959,1735589444446,-500.0,0.00014245,2]
[347220960,1735589444455,-2403.45,0.00014245,2]
[347220961,1735589444464,-500.0,0.00014245,2]
[347220962,1735589444474,-595.33,0.00014246,2]
[347220963,1735589444483,-500.0,0.00014518,2]
[347220964,1735589444492,-343.1949092,0.00014519,2]
[347220965,1735589444501,-520.24375932,0.00014519,2]
[347220966,1735589444510,-333.27577191,0.00014519,2]
[347220967,1735589444519,-500.0,0.00014519,2]
[347220968,1735589444528,-500.0,0.00014519,2]
[347220969,1735589444538,-500.0,0.00014519,2]
[347220970,1735589444547,-2403.45,0.00014519,2]
[347220971,1735589444557,-595.33,0.0001452,2]
[347220972,1735589444566,-2507.7175,0.00014739,2]
[347220973,1735589444574,-500.0,0.00014792,2]
[347220974,1735589444657,-500.0,0.00014793,2]
[347220975,1735589444666,-500.0,0.00014793,2]
[347220976,1735589444676,-500.0,0.00014793,2]
[347220977,1735589444685,-500.0,0.00014793,2]
[347220978,1735589444695,-500.0,0.00014793,2]
[347220979,1735589444704,-500.0,0.00014793,2]
[347220980,1735589444713,-500.0,0.00014793,2]
[347220981,1735589444722,-500.0,0.00014793,2]
[347220982,1735589444732,-2403.45,0.00014793,2]
[347220983,1735589444741,-611.11,0.00014793,2]
[347220984,1735589444750,-595.33,0.00014794,2]
[347220985,1735589444760,-604.76575735,0.00014987,2]
[347220986,1735589444769,-604.76575735,0.00014992,2]
[347220987,1735589444778,-604.76575735,0.00014998,2]
[347220988,1735589444788,-500.0,0.00015066,2]
[347220989,1735589444798,-500.0,0.00015067,2]
[347220990,1735589444807,-193.64,0.00015067,2]
[347220991,1735589444817,-500.0,0.00015067,2]
[347220992,1735589444826,-602.16,0.00015067,2]
[347220993,1735589444835,-2403.45,0.00015067,2]
[347220994,1735589444844,-595.33,0.00015068,2]
[347220995,1735589444853,-309.6069974,0.0001523,2]
[347220996,1735589444863,-2507.7175,0.00015255,2]
[347220997,1735589444872,-2018.7,0.00015329,2]
[347220998,1735589444881,-500.0,0.0001533,2]
[347220999,1735589444891,-500.0,0.0001533,2]
[347221000,1735589444900,-500.0,0.0001533,2]
[347221001,1735589444909,-500.0,0.0001533,2]
[347221002,1735589444919,-500.0,0.0001533,2]
[347221003,1735589444928,-500.0,0.0001533,2]
[347221004,1735589444938,-500.0,0.0001533,2]
[347221005,1735589444948,-500.0,0.0001533,2]
[347221006,1735589444958,-500.0,0.0001533,2]
[347221007,1735589444967,-495.0,0.0001533,2]
[347221008,1735589444976,-500.0,0.0001533,2]
[347221009,1735589444986,-500.0,0.0001533,2]
[347221010,1735589444996,-500.0,0.0001533,2]
[347221011,1735589445006,-619.03020251,0.0001533,2]
[347221012,1735589445015,-500.0,0.0001533,2]
[347221013,1735589445024,-500.0,0.0001533,2]
[347221014,1735589445034,-500.0,0.0001533,2]
[347221015,1735589445043,-500.0,0.0001533,2]
[347221016,1735589445052,-500.0,0.0001533,2]
[347221017,1735589445061,-500.0,0.0001533,2]
[347221018,1735589445071,-532.69738055,0.0001533,2]
[347221019,1735589445080,-500.0,0.0001533,2]
[347221020,1735589445090,-500.0,0.0001533,2]
[347221021,1735589445099,-500.0,0.0001533,2]
[347221022,1735589445109,-500.0,0.0001533,2]
[347221023,1735589445118,-500.0,0.0001533,2]
[347221024,1735589445127,-500.0,0.0001533,2]
[347221025,1735589445137,-500.0,0.0001533,2]
[347221026,1735589445147,-500.0,0.0001533,2]
[347221027,1735589445156,-500.0,0.0001533,2]
[347221028,1735589445166,-500.0,0.0001533,2]
[347221029,1735589445176,-500.0,0.0001533,2]
[347221030,1735589445185,-500.0,0.0001533,2]
[347221031,1735589445194,-500.0,0.0001533,2]
[347221032,1735589445204,-500.0,0.0001533,2]
[347221033,1735589445213,-500.0,0.0001533,2]
[347221034,1735589445222,-500.0,0.0001533,2]
[347221035,1735589445231,-500.0,0.0001533,2]
[347221036,1735589445241,-500.0,0.0001533,2]
[347221037,1735589445250,-500.0,0.0001533,2]
[347221038,1735589445259,-500.0,0.0001533,2]